fUSD/lending_fUSD_20240518
["ID","MTS","AMOUNT","RATE_DAILY","PERIOD"]
[327385413,1716037845856,-212.04238757,0.00032876,2]
[327385414,1716037845865,-500.0,0.00032876,2]
[327385415,1716037845874,-500.0,0.00032876,2]
[327385416,1716037845884,-513.02317924,0.00032876,2]
[327385417,1716037845894,-500.0,0.00032876,2]
[327385418,1716037845904,-530.24649828,0.00032876,2]
[327385419,1716037845913,-500.0,0.00032876,2]
[327385420,1716037845923,-151.0,0.00032876,7]
[327385421,1716037845932,-500.0,0.00032876,2]
[327385422,1716037845942,-548.74,0.00032876,2]
[327385423,1716037845951,-500.0,0.00032876,2]
[327385424,1716037845960,-151.0,0.00032876,7]
[327385425,1716037845970,-500.0,0.00032876,2]
[327385426,1716037845979,-500.0,0.00032876,2]
[327385427,1716037845993,-506.39925518,0.00032876,2]
[327385428,1716037846004,-500.0,0.00032876,2]
[327385429,1716037846013,-500.0,0.00032876,2]
[327385430,1716037846022,-500.0,0.00032876,2]
[327385431,1716037846033,-500.0,0.00032876,2]
[327385432,1716037846042,-520.68332506,0.00032876,2]
[327385433,1716037846052,-500.0,0.00032876,2]
[327385434,1716037846061,-510.19806702,0.00032876,2]
[327385435,1716037846070,-500.0,0.00032876,2]
[327385436,1716037846080,-500.0,0.00032876,2]
[327385437,1716037846090,-366.96633376,0.00032876,2]
[327385438,1716037846099,-500.0,0.00032876,2]
[327385439,1716037846108,-500.0,0.00032876,2]
[327385440,1716037846118,-500.0,0.00032876,2]
[327385441,1716037846127,-500.0,0.00032876,2]
[327385442,1716037846136,-500.0,0.00032876,2]
[327385444,1716037846147,-500.0,0.00032876,2]
[327385446,1716037846156,-500.0,0.00032876,2]
[327385448,1716037846167,-679.08,0.00032876,2]
[327385450,1716037846176,-500.0,0.00032876,2]
[327385452,1716037846185,-500.0,0.00032876,2]
[327385453,1716037846194,-2023.72,0.00032876,2]
[327385454,1716037846203,-531.00671538,0.00032876,2]
[327385455,1716037846212,-500.0,0.00032876,2]
[327385456,1716037846221,-504.86551836,0.00032876,2]
[327385457,1716037846230,-505.53489842,0.00032876,2]
[327385458,1716037846239,-2168.11,0.00032876,2]
[327385459,1716037846248,-500.0,0.00032876,2]
[327385460,1716037846258,-500.0,0.00032876,2]
[327385461,1716037846267,-506.07820384,0.00032876,2]
[327385462,1716037846277,-500.0,0.00032876,2]
[327385463,1716037846286,-500.0,0.00032876,2]
[327385464,1716037846296,-500.0,0.00032876,2]
[327385465,1716037846306,-501.46274481,0.00032876,2]
[327385466,1716037846315,-223.65136793,0.00032876,2]
[327385467,1716037846324,-500.0,0.00032876,2]
[327385468,1716037846333,-500.0,0.00032876,2]
[327385469,1716037846343,-2594.74,0.00032876,2]
[327385470,1716037846352,-510.33548365,0.00032876,2]
[327385471,1716037846362,-500.0,0.00032876,2]
[327385472,1716037846371,-1416.53,0.00032876,2]
[327385473,1716037846381,-500.0,0.00032876,2]
[327385474,1716037846392,-500.0,0.00032876,2]
[327385475,1716037846401,-509.96611248,0.00032876,2]
[327385476,1716037846410,-245.01912741,0.00032876,2]
[327385477,1716037846419,-205.56618278,0.00032876,2]
[327385478,1716037846428,-500.0,0.00032876,2]
[327385479,1716037846438,-500.0,0.00032876,2]
[327385480,1716037846447,-500.0,0.00032876,2]
[327385481,1716037846457,-500.0,0.00032876,2]
[327385482,1716037846466,-500.0,0.00032876,2]
[327385483,1716037846475,-500.0,0.00032876,2]
[327385484,1716037846484,-500.0,0.00032876,2]
[327385485,1716037846494,-505.47029481,0.00032876,2]
[327385486,1716037846503,-500.0,0.00032876,2]
[327385487,1716037846512,-500.0,0.00032876,2]
[327385488,1716037846521,-500.0,0.00032876,2]
[327385489,1716037846531,-500.0,0.00032876,2]
[327385490,1716037846540,-500.0,0.00032876,2]
[327385491,1716037846549,-2048.33,0.00032876,2]
[327385492,1716037846559,-500.0,0.00032876,2]
[327385493,1716037846569,-500.0,0.00032876,2]
[327385494,1716037846578,-500.0,0.00032876,2]
[327385495,1716037846587,-500.0,0.00032876,2]
[327385496,1716037846596,-500.0,0.00032876,2]
[327385497,1716037846606,-500.0,0.00032876,2]
[327385498,1716037846615,-524.28420513,0.00032876,2]
[327385499,1716037846625,-507.37286768,0.00032876,2]
[327385500,1716037846634,-500.0,0.00032876,2]
[327385501,1716037846645,-500.0,0.00032876,2]
[327385502,1716037846654,-520.09441029,0.00032876,2]
[327385503,1716037846663,-542.06,0.00032876,2]
[327385504,1716037846672,-500.0,0.00032876,2]
[327385505,1716037846681,-151.0,0.00032876,7]
[327385506,1716037846691,-151.0,0.00032876,7]
[327385507,1716037846700,-151.0,0.00032876,7]
[327385508,1716037846709,-151.0,0.00032876,7]
[327385509,1716037846718,-500.0,0.00032876,2]
[327385510,1716037846727,-500.0,0.00032876,2]
[327385511,1716037846737,-500.0,0.00032876,2]
[327385512,1716037846747,-542.2891995,0.00032876,2]
[327385513,1716037846756,-500.0,0.00032876,2]
[327385514,1716037846765,-500.0,0.00032876,2]
[327385515,1716037846775,-500.0,0.00032876,2]
[327385516,1716037846784,-151.0,0.00032876,7]
[327385517,1716037846792,-151.0,0.00032876,7]
[327385518,1716037846802,-151.0,0.00032876,7]
[327385519,1716037846812,-151.0,0.00032876,7]
[327385520,1716037846821,-151.0,0.00032876,7]
[327385521,1716037846830,-151.0,0.00032876,7]
[327385522,1716037846840,-500.0,0.00032876,2]
[327385523,1716037846849,-571.02451018,0.00032876,2]
[327385524,1716037846858,-500.0,0.00032876,2]
[327385525,1716037846868,-500.0,0.00032876,2]
[327385526,1716037846877,-500.0,0.00032876,2]
[327385527,1716037846887,-861.81,0.00032876,2]
[327385528,1716037846898,-513.20460705,0.00032876,2]
[327385529,1716037846907,-500.0,0.00032876,2]
[327385530,1716037846917,-500.0,0.00032876,2]
[327385531,1716037846926,-508.81215888,0.00032876,2]
[327385532,1716037846935,-500.0,0.00032876,2]
[327385533,1716037846945,-500.0,0.00032876,2]
[327385534,1716037846954,-2462.45,0.00032876,2]
[327385535,1716037846964,-500.0,0.00032876,2]
[327385536,1716037846973,-500.0,0.00032876,2]
[327385537,1716037846984,-500.0,0.00032876,2]
[327385538,1716037846995,-502.9056628,0.00032876,2]
[327385539,1716037847007,-151.0,0.00032876,7]
[327385540,1716037847017,-500.0,0.00032876,2]
[327385541,1716037847026,-500.0,0.00032876,2]
[327385542,1716037847035,-151.0,0.00032876,7]
[327385543,1716037847046,-500.0,0.00032876,2]
[327385544,1716037847056,-507.1050675,0.00032876,2]
[327385545,1716037847065,-500.0,0.00032876,2]
[327385546,1716037847077,-500.0,0.00032876,2]
[327385547,1716037847086,-157.636358,0.00032876,7]
[327385548,1716037847096,-157.636358,0.00032876,7]
[327385549,1716037847105,-500.0,0.00032876,2]
[327385550,1716037847115,-500.0,0.00032876,2]
[327385551,1716037847124,-2203.4,0.00032876,2]
[327385552,1716037847134,-506.82132154,0.00032876,2]
[327385553,1716037847144,-500.0,0.00032876,2]
[327385554,1716037847154,-500.0,0.00032876,2]
[327385555,1716037847163,-157.636358,0.00032876,7]
[327385556,1716037847173,-157.636358,0.00032876,7]
[327385557,1716037847182,-500.0,0.00032876,2]
[327385558,1716037847192,-500.0,0.00032876,2]
[327385559,1716037847201,-500.0,0.00032876,2]
[327385560,1716037847210,-519.41414779,0.00032876,2]
[327385561,1716037847220,-524.66992199,0.00032876,2]
[327385562,1716037847230,-500.0,0.00032876,2]
[327385563,1716037847240,-500.0,0.00032876,2]
[327385564,1716037847249,-500.0,0.00032876,2]
[327385565,1716037847259,-503.97833265,0.00032876,2]
[327385566,1716037847268,-500.0,0.00032876,2]
[327385567,1716037847277,-500.0,0.00032876,2]
[327385568,1716037847287,-500.0,0.00032876,2]
[327385569,1716037847297,-500.0,0.00032876,2]
[327385570,1716037847307,-500.0,0.00032876,2]
[327385571,1716037847316,-500.0,0.00032876,2]
[327385572,1716037847326,-500.0,0.00032876,2]
[327385573,1716037847335,-509.8619342,0.00032876,2]
[327385574,1716037847345,-151.0,0.00032876,7]
[327385575,1716037847354,-151.0,0.00032876,7]
[327385576,1716037847363,-151.0,0.00032876,7]
[327385577,1716037847373,-524.29916297,0.00032876,2]
[327385578,1716037847382,-500.0,0.00032876,2]
[327385579,1716037847392,-500.0,0.00032876,2]
[327385580,1716037847402,-500.0,0.00032876,2]
[327385581,1716037847412,-2626.09,0.00032876,2]
[327385582,1716037847421,-509.16163584,0.00032876,2]
[327385583,1716037847431,-500.0,0.00032876,2]
[327385584,1716037847440,-500.0,0.00032876,2]
[327385585,1716037847450,-500.0,0.00032876,2]
[327385586,1716037847459,-528.31224414,0.00032876,2]
[327385587,1716037847469,-500.0,0.00032876,2]
[327385588,1716037847478,-516.0726045,0.00032876,2]
[327385589,1716037847488,-891.26,0.00032876,2]
[327385590,1716037847496,-500.0,0.00032876,2]
[327385591,1716037847506,-155.75945052,0.00032876,2]
[327385592,1716037847515,-500.0,0.00032876,2]
[327385593,1716037847524,-500.0,0.00032876,2]
[327385594,1716037847533,-500.0,0.00032876,2]
[327385595,1716037847543,-238.413267,0.00032876,7]
[327385596,1716037847552,-500.0,0.00032876,2]
[327385597,1716037847562,-500.0,0.00032876,2]
[327385598,1716037847572,-238.413267,0.00032876,7]
[327385599,1716037847581,-500.0,0.00032876,2]
[327385600,1716037847590,-500.0,0.00032876,2]
[327385601,1716037847599,-584.15909771,0.00032876,2]
[327385602,1716037847609,-151.0,0.00032876,7]
[327385603,1716037847618,-500.0,0.00032876,2]
[327385604,1716037847627,-500.0,0.00032876,2]
[327385605,1716037847636,-238.413267,0.00032876,7]
[327385606,1716037847647,-151.0,0.00032876,7]
[327385607,1716037847656,-520.46297165,0.00032876,2]
[327385608,1716037847665,-238.413267,0.00032876,7]
[327385609,1716037847674,-624.21277009,0.00032876,2]
[327385610,1716037847683,-500.0,0.00032876,2]
[327385611,1716037847693,-500.0,0.00032876,2]
[327385612,1716037847702,-520.33301049,0.00032876,2]
[327385613,1716037847711,-500.0,0.00032876,2]
[327385614,1716037847722,-500.0,0.00032876,2]
[327385615,1716037847731,-500.0,0.00032876,2]
[327385616,1716037847741,-500.0,0.00032876,2]
[327385617,1716037847750,-510.97547776,0.00032876,2]
[327385618,1716037847760,-500.0,0.00032876,2]
[327385619,1716037847769,-521.58,0.00032876,2]
[327385620,1716037847779,-500.0,0.00032876,2]
[327385621,1716037847788,-509.52839419,0.00032876,2]
[327385622,1716037847797,-500.0,0.00032876,2]
[327385623,1716037847807,-500.0,0.00032876,2]
[327385624,1716037847816,-500.0,0.00032876,2]
[327385625,1716037847826,-500.0,0.00032876,2]
[327385626,1716037847837,-500.0,0.00032876,2]
[327385627,1716037847846,-500.0,0.00032876,2]
[327385628,1716037847855,-500.0,0.00032876,2]
[327385629,1716037848062,-500.0,0.00032876,2]
[327385630,1716037848072,-2944.18,0.00032876,2]
[327385631,1716037848084,-509.61654911,0.00032876,2]
[327385632,1716037848094,-536.88613359,0.00032876,2]
[327385633,1716037848104,-500.0,0.00032876,2]
[327385634,1716037848114,-151.0,0.00032876,7]
[327385635,1716037848123,-151.0,0.00032876,7]
[327385636,1716037848133,-151.0,0.00032876,7]
[327385637,1716037848143,-151.0,0.00032876,7]
[327385638,1716037848155,-500.0,0.00032876,2]
[327385639,1716037848164,-500.0,0.00032876,2]
[327385640,1716037848174,-500.0,0.00032876,2]
[327385641,1716037848184,-500.0,0.00032876,2]
[327385642,1716037848193,-500.0,0.00032876,2]
[327385643,1716037848204,-504.36070701,0.00032876,2]
[327385644,1716037848213,-500.0,0.00032876,2]
[327385645,1716037848223,-151.0,0.00032876,7]
[327385646,1716037848233,-500.0,0.00032876,2]
[327385647,1716037848242,-151.0,0.00032876,7]
[327385648,1716037848252,-500.0,0.00032876,2]
[327385649,1716037848266,-500.0,0.00032876,2]
[327385650,1716037848276,-508.87634809,0.00032876,2]
[327385651,1716037848286,-503.70446913,0.00032876,2]
[327385652,1716037848296,-500.0,0.00032876,2]
[327385653,1716037848306,-500.0,0.00032876,2]
[327385654,1716037848316,-500.0,0.00032876,2]
[327385655,1716037848326,-500.0,0.00032876,2]
[327385656,1716037848336,-500.0,0.00032876,2]
[327385657,1716037848346,-500.0,0.00032876,2]
[327385658,1716037848356,-500.0,0.00032876,2]
[327385659,1716037848366,-524.33051798,0.00032876,2]
[327385660,1716037848376,-500.0,0.00032876,2]
[327385661,1716037848386,-500.0,0.00032876,2]
[327385662,1716037848396,-500.0,0.00032876,2]
[327385663,1716037848406,-500.0,0.00032876,2]
[327385664,1716037848416,-500.0,0.00032876,2]
[327385665,1716037848426,-500.0,0.00032876,2]
[327385666,1716037848436,-500.0,0.00032876,2]
[327385667,1716037848446,-500.0,0.00032876,2]
[327385668,1716037848455,-538.30605871,0.00032876,2]
[327385669,1716037848466,-500.0,0.00032876,2]
[327385670,1716037848476,-151.0,0.00032876,7]
[327385671,1716037848486,-151.0,0.00032876,7]
[327385672,1716037848496,-500.0,0.00032876,2]
[327385673,1716037848505,-500.0,0.00032876,2]
[327385674,1716037848515,-542.26,0.00032876,2]
[327385675,1716037848525,-500.0,0.00032876,2]
[327385676,1716037848534,-513.30361432,0.00032876,2]
[327385677,1716037848544,-500.0,0.00032876,2]
[327385678,1716037848554,-500.0,0.00032876,2]
[327385679,1716037848564,-151.0,0.00032876,7]
[327385680,1716037848573,-151.0,0.00032876,7]
[327385681,1716037848583,-600.69452195,0.00032876,2]
[327385682,1716037848593,-204.57451448,0.00032876,2]
[327385683,1716037848603,-500.0,0.00032876,2]
[327385684,1716037848613,-151.0,0.00032876,7]
[327385685,1716037848623,-151.0,0.00032876,7]
[327385686,1716037848633,-500.0,0.00032876,2]
[327385687,1716037848643,-500.0,0.00032876,2]
[327385688,1716037848654,-510.83500646,0.00032876,2]
[327385689,1716037848664,-500.0,0.00032876,2]
[327385690,1716037848673,-151.0,0.00032876,7]
[327385691,1716037848683,-500.0,0.00032876,2]
[327385692,1716037848692,-500.0,0.00032876,2]
[327385693,1716037848702,-151.0,0.00032876,7]
[327385694,1716037848711,-500.0,0.00032876,2]
[327385695,1716037848722,-500.0,0.00032876,2]
[327385696,1716037848731,-500.0,0.00032876,2]
[327385697,1716037848741,-500.0,0.00032876,2]
[327385698,1716037848750,-500.0,0.00032876,2]
[327385699,1716037848760,-500.0,0.00032876,2]
[327385700,1716037848769,-500.0,0.00032876,2]
[327385701,1716037848779,-500.0,0.00032876,2]
[327385702,1716037848789,-500.0,0.00032876,2]
[327385703,1716037848798,-151.0,0.00032876,7]
[327385704,1716037848808,-500.0,0.00032876,2]
[327385705,1716037848817,-500.0,0.00032876,2]
[327385706,1716037848827,-393.9159797,0.00032876,2]
[327385707,1716037848836,-500.0,0.00032876,2]
[327385708,1716037848846,-500.0,0.00032876,2]
[327385709,1716037848856,-500.0,0.00032876,2]
[327385710,1716037848865,-500.0,0.00032876,2]
[327385711,1716037848875,-500.0,0.00032876,2]
[327385712,1716037848884,-500.0,0.00032876,2]
[327385713,1716037848893,-500.0,0.00032876,2]
[327385714,1716037848905,-510.64356905,0.00032876,2]
[327385715,1716037848914,-500.0,0.00032876,2]
[327385716,1716037848924,-505.90094278,0.00032876,2]
[327385717,1716037848933,-500.0,0.00032876,2]
[327385718,1716037848944,-170.52,0.00032876,2]
[327385719,1716037848955,-522.33134631,0.00032876,2]
[327385720,1716037848967,-511.90998357,0.00032876,2]
[327385721,1716037848976,-472.69735507,0.00032876,2]
[327385722,1716037848986,-500.0,0.00032876,2]
[327385723,1716037849001,-500.0,0.00032876,2]
[327385724,1716037849011,-408.19817109,0.00032876,2]
[327385725,1716037849021,-503.2507854,0.00032876,2]
[327385726,1716037849032,-500.0,0.00032876,2]
[327385727,1716037849043,-500.0,0.00032876,2]
[327385728,1716037849052,-621.47,0.00032876,2]
[327385729,1716037849062,-500.0,0.00032876,2]
[327385730,1716037849073,-500.0,0.00032876,2]
[327385731,1716037849084,-530.01337909,0.00032876,2]
[327385732,1716037849094,-156.735835,0.00032876,7]
[327385733,1716037849104,-500.0,0.00032876,2]
[327385734,1716037849114,-513.89421779,0.00032876,2]
[327385735,1716037849124,-500.0,0.00032876,2]
[327385736,1716037849135,-500.0,0.00032876,2]
[327385737,1716037849144,-500.0,0.00032876,2]
[327385738,1716037849156,-500.0,0.00032876,2]
[327385739,1716037849167,-504.77462485,0.00032876,2]
[327385740,1716037849176,-505.81573823,0.00032876,2]
[327385741,1716037849186,-507.42,0.00032876,2]
[327385742,1716037849196,-507.93361903,0.00032876,2]
[327385743,1716037849206,-500.0,0.00032876,2]
[327385744,1716037849216,-500.0,0.00032876,2]
[327385745,1716037849226,-151.0,0.00032876,7]
[327385746,1716037849236,-424.85171742,0.00032876,2]
[327385747,1716037849246,-151.0,0.00032876,7]
[327385748,1716037849256,-151.0,0.00032876,7]
[327385749,1716037849266,-500.0,0.00032876,2]
[327385750,1716037849276,-500.00493431,0.00032876,2]
[327385751,1716037849286,-500.0,0.00032876,2]
[327385752,1716037849296,-500.0,0.00032876,2]
[327385753,1716037849306,-500.0,0.00032876,2]
[327385754,1716037849316,-507.03732611,0.00032876,2]
[327385755,1716037849326,-151.0,0.00032876,7]
[327385756,1716037849336,-151.0,0.00032876,7]
[327385757,1716037849346,-503.85064305,0.00032876,2]
[327385758,1716037849356,-151.0,0.00032876,7]
[327385759,1716037849365,-178.96909007,0.00032876,2]
[327385760,1716037849375,-523.28490616,0.00032876,2]
[327385761,1716037849385,-505.53891602,0.00032876,2]
[327385762,1716037849395,-500.0,0.00032876,2]
[327385763,1716037849405,-518.92052584,0.00032876,2]
[327385764,1716037849414,-500.0,0.00032876,2]
[327385765,1716037849423,-500.0,0.00032876,2]
[327385766,1716037849433,-500.0,0.00032876,2]
[327385767,1716037849442,-500.0,0.00032876,2]
[327385768,1716037849452,-504.30505431,0.00032876,2]
[327385769,1716037849462,-500.0,0.00032876,2]
[327385770,1716037849471,-500.0,0.00032876,2]
[327385771,1716037849481,-151.0,0.00032876,7]
[327385772,1716037849491,-151.0,0.00032876,7]
[327385773,1716037849500,-151.0,0.00032876,7]
[327385774,1716037849510,-514.17959863,0.00032876,2]
[327385775,1716037849519,-151.0,0.00032876,7]
[327385776,1716037849529,-151.0,0.00032876,7]
[327385777,1716037849538,-530.32562658,0.00032876,2]
[327385778,1716037849548,-500.0,0.00032876,2]
[327385779,1716037849557,-151.0,0.00032876,7]
[327385780,1716037849567,-151.0,0.00032876,7]
[327385781,1716037849576,-519.81015004,0.00032876,2]
[327385782,1716037849586,-151.0,0.00032876,7]
[327385783,1716037849596,-151.0,0.00032876,7]
[327385784,1716037849606,-151.0,0.00032876,7]
[327385785,1716037849615,-151.0,0.00032876,7]
[327385786,1716037849625,-500.0,0.00032876,2]
[327385787,1716037849635,-500.0,0.00032876,2]
[327385788,1716037849644,-4384.6,0.00032876,2]
[327385789,1716037849655,-500.0,0.00032876,2]
[327385790,1716037849664,-500.0,0.00032876,2]
[327385791,1716037849674,-197.714361,0.00032876,7]
[327385792,1716037849684,-197.714361,0.00032876,7]
[327385793,1716037849694,-197.714361,0.00032876,7]
[327385794,1716037849704,-151.0,0.00032876,7]
[327385795,1716037849713,-285.97891,0.00032876,7]
[327385796,1716037849723,-507.20643355,0.00032876,2]
[327385797,1716037849732,-151.0,0.00032876,7]
[327385798,1716037849742,-500.0,0.00032876,2]
[327385799,1716037849751,-500.0,0.00032876,2]
[327385800,1716037849761,-500.0,0.00032876,2]
[327385801,1716037849771,-500.0,0.00032876,2]
[327385802,1716037849780,-500.0,0.00032876,2]
[327385803,1716037849790,-500.0,0.00032876,2]
[327385804,1716037849799,-500.0,0.00032876,2]
[327385805,1716037849809,-500.0,0.00032876,2]
[327385806,1716037849819,-500.0,0.00032876,2]
[327385807,1716037849829,-500.0,0.00032876,2]
[327385808,1716037849839,-500.0,0.00032876,2]
[327385809,1716037849848,-500.0,0.00032876,2]
[327385810,1716037849859,-500.0,0.00032876,2]
[327385811,1716037849869,-500.0,0.00032876,2]
[327385812,1716037849879,-500.0,0.00032876,2]
[327385813,1716037849889,-500.0,0.00032876,2]
[327385814,1716037849900,-500.0,0.00032876,2]
[327385815,1716037849910,-500.0,0.00032876,2]
[327385816,1716037849919,-515.63273376,0.00032876,2]
[327385817,1716037849928,-500.0,0.00032876,2]
[327385818,1716037849938,-519.87629191,0.00032876,2]
[327385819,1716037849947,-500.0,0.00032876,2]
[327385820,1716037849957,-620.82135019,0.00032876,2]
[327385821,1716037849967,-500.0,0.00032876,2]
[327385822,1716037849976,-3448.05,0.00032876,2]
[327385823,1716037849987,-500.0,0.00032876,2]
[327385824,1716037850000,-500.0,0.00032876,2]
[327385825,1716037850010,-500.0,0.00032876,2]
[327385826,1716037850020,-500.0,0.00032876,2]
[327385827,1716037850030,-500.0,0.00032876,2]
[327385828,1716037850040,-500.0,0.00032876,2]
[327385829,1716037850049,-4209.38,0.00032876,2]
[327385830,1716037850059,-506.19864631,0.00032876,2]
[327385831,1716037850069,-500.0,0.00032876,2]
[327385832,1716037850082,-1094.2,0.00032876,2]
[327385833,1716037850092,-500.0,0.00032876,2]
[327385834,1716037850103,-539.95659499,0.00032876,2]
[327385835,1716037850113,-500.0,0.00032876,2]
[327385836,1716037850122,-500.0,0.00032876,2]
[327385837,1716037850132,-500.0,0.00032876,2]
[327385838,1716037850142,-500.0,0.00032876,2]
[327385839,1716037850156,-513.12781217,0.00032876,2]
[327385840,1716037850165,-500.0,0.00032876,2]
[327385841,1716037850175,-4208.47,0.00032876,2]
[327385842,1716037850185,-598.07,0.00032876,2]
[327385843,1716037850194,-500.0,0.00032876,2]
[327385844,1716037850205,-500.0,0.00032876,2]
[327385845,1716037850215,-506.0480758,0.00032876,2]
[327385846,1716037850224,-521.91631349,0.00032876,2]
[327385847,1716037850233,-577.29962592,0.00032876,2]
[327385848,1716037850243,-507.53817414,0.00032876,2]
[327385849,1716037850253,-595.9,0.00032876,2]
[327385850,1716037850262,-764.87,0.00032876,2]
[327385851,1716037850272,-502.61304064,0.00032876,2]
[327385852,1716037850281,-500.0,0.00032876,2]
[327385853,1716037850290,-151.0,0.00032876,7]
[327385854,1716037850300,-151.0,0.00032876,7]
[327385855,1716037850309,-500.0,0.00032876,2]
[327385856,1716037850318,-7506.74,0.00032876,2]
[327385857,1716037850328,-500.0,0.00032876,2]
[327385858,1716037850337,-1716.7,0.00032876,2]
[327385859,1716037850347,-151.0,0.00032876,7]
[327385860,1716037850356,-151.0,0.00032876,7]
[327385861,1716037850366,-500.0,0.00032876,2]
[327385862,1716037850376,-500.0,0.00032876,2]
[327385863,1716037850386,-3051.98,0.00032876,2]
[327385864,1716037850397,-500.0,0.00032876,2]
[327385865,1716037850406,-500.0,0.00032876,2]
[327385866,1716037850416,-151.0,0.00032876,7]
[327385867,1716037850426,-151.0,0.00032876,7]
[327385868,1716037850435,-500.0,0.00032876,2]
[327385869,1716037850445,-907.52,0.00032876,2]
[327385870,1716037850455,-151.0,0.00032876,7]
[327385871,1716037850526,-2043.57,0.00032876,2]
[327385872,1716037850535,-151.0,0.00032876,7]
[327385873,1716037850545,-500.0,0.00032876,2]
[327385874,1716037850555,-1826.69,0.00032876,2]
[327385875,1716037850564,-585.39,0.00032876,2]
[327385876,1716037850573,-500.0,0.00032876,2]
[327385877,1716037850583,-700.47,0.00032876,2]
[327385878,1716037850592,-190.978531,0.00032876,7]
[327385879,1716037850601,-190.978531,0.00032876,7]
[327385880,1716037850611,-737.2,0.00032876,2]
[327385881,1716037850620,-500.0,0.00032876,2]
[327385882,1716037850629,-505.72402678,0.00032876,2]
[327385883,1716037850638,-500.0,0.00032876,2]
[327385884,1716037850648,-190.978531,0.00032876,7]
[327385885,1716037850657,-700.7,0.00032876,2]
[327385886,1716037850667,-190.978531,0.00032876,7]
[327385887,1716037850675,-500.0,0.00032876,2]
[327385888,1716037850685,-500.0,0.00032876,2]
[327385889,1716037850694,-2274.52,0.00032876,2]
[327385890,1716037850703,-500.0,0.00032876,2]
[327385891,1716037850712,-836.83,0.00032876,2]
[327385892,1716037850721,-500.0,0.00032876,2]
[327385893,1716037850730,-840.37,0.00032876,2]
[327385894,1716037850740,-820.2,0.00032876,2]
[327385895,1716037850749,-500.0,0.00032876,2]
[327385896,1716037850758,-921.93,0.00032876,2]
[327385897,1716037850767,-7455.38,0.00032876,2]
[327385898,1716037850776,-151.0,0.00032876,7]
[327385899,1716037850786,-519.450129,0.00032876,7]
[327385900,1716037850794,-519.450129,0.00032876,7]
[327385901,1716037850804,-1515.21,0.00032876,2]
[327385902,1716037850814,-8974.07,0.00032876,2]
[327385903,1716037850823,-2511.84,0.00032876,2]
[327385904,1716037850832,-500.0,0.00032876,2]
[327385905,1716037850841,-2531.53,0.00032876,2]
[327385906,1716037850850,-519.450129,0.00032876,7]
[327385907,1716037850859,-519.450129,0.00032876,7]
[327385908,1716037850868,-531.02471201,0.00032876,2]
[327385909,1716037850878,-215.556204,0.00032876,7]
[327385910,1716037850887,-215.556204,0.00032876,7]
[327385911,1716037850898,-623.05,0.00032876,2]
[327385912,1716037850907,-500.0,0.00032876,2]
[327385913,1716037850917,-5773.11,0.00032876,2]
[327385914,1716037850926,-702.74,0.00032876,2]
[327385915,1716037850936,-215.556204,0.00032876,7]
[327385916,1716037850945,-215.556204,0.00032876,7]
[327385917,1716037850954,-500.0,0.00032876,2]